Cogmind - Beta 13 @@@ ROGUE MODE // 2024.04.15 @ 12:57:42 Player: SovietPaperclip Result: Self-destructed Performance ------------- Evolutions (2) 1000 Regions Visited (5) 1000 Robots Destroyed (53) 265 Value Destroyed (1096) 1096 Prototype IDs (2) 40 Alien Tech Used (0) 0 Bonus (22) 22 TOTAL SCORE: 3423 Bonus ------- High Alert Combat Kills 22 Cogmind --------- Core Integrity 141/550 Matter 205/300 Energy 160/160 System Corruption 0% Temperature Warm (178) Movement Core (1450) Ox28 Location -8/Materials Parts ------- > --- POWER (1) -------- Light Nuclear Core > --- PROPULSION (4) --- (None) > --- UTILITY (4) ------ Huge Storage Unit > --- WEAPON (2) ------- (None) > --- INVENTORY (25) --- Light Treads Light Treads Light Treads Carbon-fiber Leg Carbon-fiber Leg Structural Scanner Hacking Suite Long-range Tractor Beam Peak State ------------ > --- POWER ------------ Light Nuclear Core > --- PROPULSION ------- Compact Wheel Compact Wheel Compact Wheel Compact Wheel > --- UTILITY ---------- Improved Heat Sink Huge Storage Unit Improved Light Armor Plating > --- WEAPON ----------- Light Assault Rifle Light Assault Rifle > --- INVENTORY -------- Light Ion Engine Structural Scanner Hacking Suite Long-range Tractor Beam Grenade Launcher Rocket Launcher Rocket Launcher [Rating: 17] Favorites ----------- Power Light Ion Engine Engine Light Ion Engine Power Core Light Nuclear Core Propulsion Light Treads Treads Light Treads Wheel Compact Wheel Utility Huge Storage Unit Device Improved Heat Sink Storage Huge Storage Unit Protection Improved Light Armor Plating Weapon Assault Rifle Energy Gun Improved Medium Laser Ballistic Gun Assault Rifle Launcher Grenade Launcher Build | -11 -10 -10 -10 -9 -8 ------- Run | Yrd Mat Min Exi Min Mat Slots Evolved 4 | . . . . . 4 Power . | . . . . . . Propulsion 2 | . . . . . 2 Utility 2 | . . . . . 2 Weapon . | . . . . . . Parts Attached 32 | 7 3 . . 2 20 Power 4 | 1 . . . . 3 Engine 2 | 1 . . . . 1 Core 2 | . . . . . 2 Reactor . | . . . . . . Propulsion 7 | 2 . . . . 5 Treads 3 | 2 . . . . 1 Leg . | . . . . . . Wheel 4 | . . . . . 4 Hover . | . . . . . . Flight . | . . . . . . Utility 6 | 1 1 . . . 4 Device 1 | . . . . . 1 Storage 4 | 1 1 . . . 2 Processor . | . . . . . . Hackware . | . . . . . . Protection 1 | . . . . . 1 Artifact . | . . . . . . Weapon 15 | 3 2 . . 2 8 Energy Gun 3 | . . . . . 3 Energy Cannon . | . . . . . . Ballistic Gun 7 | 3 1 . . 1 2 Ballistic Cannon . | . . . . . . Launcher 5 | . 1 . . 1 3 Special Weapon . | . . . . . . Impact Weapon . | . . . . . . Slashing Weapon . | . . . . . . Piercing Weapon . | . . . . . . Special Melee Weapon . | . . . . . . Unidentified Prototypes 2 | . . . . . 2 Parts Lost 19 | . . . . . 19 Power 3 | . . . . . 3 Propulsion 7 | . . . . . 7 Utility 2 | . . . . . 2 Weapon 7 | . . . . . 7 Highest Loss Streak 8 | . . . . . 8 To Critical Strikes . | . . . . . . Average Slot Usage (%) 77 | . 85 85 85 85 59 Engine 11 | . 14 14 14 14 6 Treads 23 | . 28 28 28 28 12 Wheel 2 | . . . . . 6 Storage 12 | . 14 14 14 14 9 Protection 1 | . . . . . 5 Ballistic Gun 24 | . 27 28 28 26 15 Naked Turns . | . . . . . . Heaviest Build 91 | 12 87 87 87 89 91 Greatest Support 64 | 40 40 40 40 40 64 Greatest Overweight (x) 16 | . 2 2 2 2 16 Average Overweight (x) 1 | . . 2 2 2 2 Largest Inventory Capacity 25 | 8 25 25 25 25 25 Average Capacity 20 | 6 16 25 25 25 22 Most Carried 11 | 4 7 8 9 8 11 Average Carried 7 | 1 5 7 8 8 8 Final Capacity 25 | 8 25 25 25 25 25 Final Carried 8 | 2 7 8 8 8 8 Class Distribution -------------------- 97% | Mutant Dominant Class ---------------- Mutant | -10/Materials Mutant | -10/Mines Mutant | -10/Exiles Mutant | -9/Mines Mutant | -8/Materials Resources | -11 -10 -10 -10 -9 -8 ----------- Run | Yrd Mat Min Exi Min Mat Matter Collected 918 | 239 146 . 34 63 436 Remotely . | . . . . . . Salvage Created 1579 | . 258 . . 90 1231 Parts 123 | . 22 . . 7 94 Haulers Intercepted 6 | . 2 . . . 4 Recyclers Shooed 2 | . . . . . 2 Parts Field Recycled . | . . . . . . Retrieved Matter . | . . . . . . Parts Self-Destructed . | . . . . . . Prevented . | . . . . . . Kills | -11 -10 -10 -10 -9 -8 ------- Run | Yrd Mat Min Exi Min Mat Combat Hostiles Destroyed 34 | . 8 . . 3 23 Guns 26 | . 3 . . 3 20 AOE 8 | . 5 . . . 3 Classes Destroyed 11 | . 4 . . 1 6 Worker 4 | . . . . . 4 Builder 1 | . . . . . 1 Hauler 6 | . 2 . . . 4 Recycler 2 | . . . . . 2 Mechanic 2 | . 1 . . . 1 Operator 1 | . . . . . 1 Watcher 3 | . . . . . 3 Swarmer 17 | . 6 . . 2 9 Grunt 15 | . 2 . . . 13 Brawler 1 | . . . . 1 . Sentry 1 | . . . . . 1 Best Kill Streak 17 | . 6 . . 2 17 Combat Bots Only 6 | . 6 . . 2 4 Max Kills in Single Turn 4 | . 4 . . 1 3 Gunslinging . | . . . . . . Exploded 4 | . 4 . . . 1 Melee . | . . . . . . Uniques/NPCs Destroyed . | . . . . . . Combat | -11 -10 -10 -10 -9 -8 -------- Run | Yrd Mat Min Exi Min Mat Hostile Shots Fired 193 | . 26 . . 19 148 Missed 35 | . 3 . . 3 29 Damage Taken 2233 | . 195 . . 195 1843 Core 472 | . 21 . . 42 409 Absorbed by Shields . | . . . . . . Core Remaining (%) 87 | 100 . . . 74 . Volleys Fired 137 | . 21 . . 5 111 Largest 2 | . 2 . . 2 2 Hottest 89 | . 40 . . 53 89 Shots Fired 249 | . 35 . . 9 205 Gun 236 | . 33 . . 7 196 Cannon . | . . . . . . Launcher 13 | . 2 . . 2 9 Special . | . . . . . . Kinetic 232 | . 33 . . 7 192 Thermal 4 | . . . . . 4 Explosive 13 | . 2 . . 2 9 Electromagnetic . | . . . . . . Robot Hit Streak 18 | . 10 . . 8 18 Robot Miss Streak 5 | . 2 . . . 5 Penetration Max . | . . . . . . Secondary Targets 1 | . . . . 1 . Max Gunslinging Chain 1 | . . . . 1 . Shots Hit Robots 173 | . 21 . . 6 146 Core Hits 112 | . 17 . . 6 89 Critical Kills . | . . . . . . Critical Parts Destroyed 2 | . 1 . . . 1 Critical Strikes 2 | . 1 . . . 1 Destroy 2 | . 1 . . . 1 Melee Attacks . | . . . . . . Impact . | . . . . . . Slashing . | . . . . . . Piercing . | . . . . . . Sneak Attacks . | . . . . . . Combat Hostiles . | . . . . . . Follow-up Attacks . | . . . . . . Damage Inflicted 3022 | . 446 . . 88 2488 Guns 1741 | . 263 . . 76 1402 Cannons . | . . . . . . Explosions 1281 | . 183 . . 12 1086 Melee . | . . . . . . Ramming . | . . . . . . Kinetic 1706 | . 263 . . 76 1367 Thermal 35 | . . . . . 35 Explosive 1281 | . 183 . . 12 1086 Electromagnetic . | . . . . . . Impact . | . . . . . . Slashing . | . . . . . . Piercing . | . . . . . . Highest Corruption . | . . . . . . Average Corruption . | . . . . . . Corruption Purged . | . . . . . . Corruption Blocked . | . . . . . . Overload Shots . | . . . . . . Overflow Damage 51 | . 5 . . . 46 Projectiles . | . . . . . . Explosions 51 | . 5 . . . 46 Melee . | . . . . . . Knockbacks . | . . . . . . Impact . | . . . . . . Kinetic . | . . . . . . Secondary . | . . . . . . Self-Inflicted Damage 126 | . . . . 41 85 Shots 4 | . . . . 1 3 Rammed . | . . . . . . Targets Rammed . | . . . . . . Kicked . | . . . . . . Crushed . | . . . . . . Highest Temperature 160 | . . . . . 160 Average Temperature 28 | . . . . . 28 Received Heat Transfer 990 | . 24 . . 48 918 Siege Activations . | . . . . . . Robots Corrupted . | . . . . . . Combat Hostiles . | . . . . . . Parts Fried . | . . . . . . Impact Corruptions . | . . . . . . Robots Melted . | . . . . . . Combat Hostiles . | . . . . . . Parts Melted . | . . . . . . Heat Transferred 74 | . . . . . 74 Parts Sabotaged . | . . . . . . Parts Stolen . | . . . . . . Parts Stripped . | . . . . . . Power Chain Reactions . | . . . . . . Alert | -11 -10 -10 -10 -9 -8 ------- Run | Yrd Mat Min Exi Min Mat Peak Influence 509 | . 201 10 . 124 509 Initial 48 | . . 10 . . 48 Average 139 | . 98 10 . 68 236 Maximum Alert Level 2 | . 1 . . . 2 Low Security (%) 64 | 100 79 100 . 100 30 Level 1 32 | . 20 . . . 62 Level 2 2 | . . . . . 7 Level 3 . | . . . . . . Level 4 . | . . . . . . Level 5 . | . . . . . . High Security . | . . . . . . Max Security . | . . . . . . Squads Dispatched 3 | . 1 . . . 2 Investigation 1 | . . . . . 1 Extermination . | . . . . . . Reinforcement 2 | . 1 . . . 1 Assault . | . . . . . . Garrison . | . . . . . . Intercept . | . . . . . . Searches Triggered . | . . . . . . Construction Impeded 1 | . . . . . 1 Haulers Reinforced . | . . . . . . Active Scanning Responses . | . . . . . . Cargo Convoy Interrupts . | . . . . . . Stealth | -11 -10 -10 -10 -9 -8 --------- Run | Yrd Mat Min Exi Min Mat Distress Signals 4 | . . . . . 4 Communications Jammed . | . . . . . . Distress Signals . | . . . . . . Times Spotted 61 | . 13 . . 6 42 Peak Tracking Total 7 | . 6 . . 4 7 Tactical Retreats 5 | . . . . 1 4 Traps | -11 -10 -10 -10 -9 -8 ------- Run | Yrd Mat Min Exi Min Mat Traps Triggered . | . . . . . . Indirectly . | . . . . . . Trap Hack Attempts . | . . . . . . Triggered . | . . . . . . Disarmed . | . . . . . . Reprogrammed . | . . . . . . Reused . | . . . . . . Traps Extracted . | . . . . . . Installed . | . . . . . . Triggered . | . . . . . . Machines | -11 -10 -10 -10 -9 -8 ---------- Run | Yrd Mat Min Exi Min Mat Machines Disabled 1 | . . . . . 1 Max in Single Turn 1 | . . . . . 1 Machines Repaired . | . . . . . . Machines Dismantled . | . . . . . . Machines Sabotaged . | . . . . . . Overloaded Fab Kills . | . . . . . . Hacking | -11 -10 -10 -10 -9 -8 --------- Run | Yrd Mat Min Exi Min Mat Machines Accessed 4 | . 1 . 1 . 2 Terminals 2 | . 1 . . . 1 Fabricators . | . . . . . . Repair Stations . | . . . . . . Recycling Units . | . . . . . . Scanalyzers 1 | . . . . . 1 Garrison Access . | . . . . . . Total Hacks 7 | . 1 . 1 . 5 Successful 6 | . 1 . 1 . 4 Failed 1 | . . . . . 1 Catastrophic 1 | . . . . . 1 Database Lockouts . | . . . . . . Manual 1 | . . . . . 1 Terminals 2 | . 1 . . . 1 Fabricators . | . . . . . . Repair Stations . | . . . . . . Recycling Units . | . . . . . . Scanalyzers 4 | . . . . . 4 Garrison Access . | . . . . . . Terminal Hacks 2 | . 1 . 1 . . Record 1 | . . . 1 . . Zone Layout 1 | . 1 . . . . Fabricator Hacks . | . . . . . . Repair Station Hacks . | . . . . . . Recycling Unit Hacks . | . . . . . . Scanalyzer 4 | . . . . . 4 Insert Component 2 | . . . . . 2 Analyze 2 | . . . . . 2 Garrison Access Hacks . | . . . . . . Unauthorized Hacks . | . . . . . . Terminals . | . . . . . . Fabricators . | . . . . . . Repair Stations . | . . . . . . Recycling Units . | . . . . . . Scanalyzers . | . . . . . . Garrison Access . | . . . . . . Data Cores Recovered . | . . . . . . Used . | . . . . . . Hacking Detections 2 | . . . . . 2 Full Trace Events 1 | . . . . . 1 Feedback Events . | . . . . . . Feedback Blocked . | . . . . . . Robot Schematics Acquired . | . . . . . . Robots Built . | . . . . . . Authchips . | . . . . . . Time . | . . . . . . Total Robot Build Rating . | . . . . . . Part Schematics Acquired 2 | . . . . . 2 Parts Built . | . . . . . . Authchips . | . . . . . . Time . | . . . . . . Total Part Build Rating . | . . . . . . Parts Repaired . | . . . . . . Time . | . . . . . . Parts Recycled . | . . . . . . Recycled Matter . | . . . . . . Retrieved Matter . | . . . . . . Retrieved Components . | . . . . . . Parts Scanalyzed 2 | . . . . . 2 Part Schematics Acquired 2 | . . . . . 2 Parts Damaged . | . . . . . . Bothacking | -11 -10 -10 -10 -9 -8 ------------ Run | Yrd Mat Min Exi Min Mat Used RIF Installer . | . . . . . . Robots Hacked . | . . . . . . Non-combat . | . . . . . . Combat . | . . . . . . Robot Hacks Applied . | . . . . . . Relay Couplers Released . | . . . . . . Fabnet Peak Effective % . | . . . . . . Robots Rewired . | . . . . . . Allies Hacked . | . . . . . . Hacks Repelled . | . . . . . . Allies | -11 -10 -10 -10 -9 -8 -------- Run | Yrd Mat Min Exi Min Mat Total Allies . | . . . . . . Largest Group . | . . . . . . Highest-Rated Group . | . . . . . . Highest-Rated Ally . | . . . . . . Total Orders . | . . . . . . Ally Attacks . | . . . . . . Total Damage . | . . . . . . Kills . | . . . . . . Allies Corrupted . | . . . . . . Allies Melted . | . . . . . . Intel | -11 -10 -10 -10 -9 -8 ------- Run | Yrd Mat Min Exi Min Mat Robot Analysis Total . | . . . . . . Derelict Logs Recovered 1 | . . . . 1 . Drone Launches . | . . . . . . Drone Recoveries . | . . . . . . Exploration | -11 -10 -10 -10 -9 -8 ------------- Run | Yrd Mat Min Exi Min Mat Turns Passed 2307 | 64 743 91 556 190 663 Spaces Moved 752 | 37 307 29 174 55 150 Core 13 | 9 . . . . 4 Treads 675 | 28 307 29 174 55 82 Legs . | . . . . . . Wheels 64 | . . . . . 64 Hover . | . . . . . . Flight . | . . . . . . Fastest Speed 50 | 50 160 320 320 320 115 Average Speed 243 | 133 215 320 320 320 197 Slowest Speed 850 | 160 320 320 320 320 850 Overloaded Moves . | . . . . . . Propulsion Burnouts . | . . . . . . Robots Hopped . | . . . . . . Cave-ins Triggered . | . . . . . . Exploration Rate (%) 28 | 4 57 12 53 26 21 Regions Visited 5 Branch Regions 3 Pre-discovered Areas 2 | . . . 1 1 . Known Exits Taken . | . . . . . . Unknown Exits Taken 5 | 1 1 1 1 1 . Scrap Searched 1 | . . . . 1 . Spaces Dug . | . . . . . . Terrain Destroyed 70 | . 8 . . 18 44 Melee . | . . . . . . Projectile . | . . . . . . AOE 70 | . 8 . . 18 44 Terrain Rammed . | . . . . . . Walls Destroyed . | . . . . . . Machines Disabled . | . . . . . . Actions | -11 -10 -10 -10 -9 -8 --------- Run | Yrd Mat Min Exi Min Mat Total 1009 | 51 355 29 175 61 338 Wait 50 | . 18 . . . 32 Move 747 | 36 306 28 173 54 150 Hop . | . . . . . . Pick Up 36 | 8 6 1 1 . 20 Fast Attach . | . . . . . . Attach 26 | 6 1 . . . 19 Detach . | . . . . . . Swap 6 | 1 2 . . 2 1 Drop 7 | . 1 . 1 . 5 Fire 137 | . 21 . . 5 111 Melee . | . . . . . . Ram . | . . . . . . Kick . | . . . . . . Crush . | . . . . . . Escape Stasis . | . . . . . . Rewire . | . . . . . . Trap . | . . . . . . Miscellaneous . | . . . . . . Route ------- -11/Scrapyard -10/Materials (discovered 4 exits: [*Mat x3] / [*Min]) -10/Mines (discovered 2 exits: [*Mat] / *Exi) -10/Exiles -9/Mines -8/Materials History --------- Turn | Location | Event 16 | -11/Scrapyard | Discovered new exit (range 15) 65 | -11/Scrapyard | Entered Materials 301 | -10/Materials | Build established: Mutant 339 | -10/Materials | Discovered new exit (range 16) 450 | -10/Materials | Discovered new exit (range 13) 536 | -10/Materials | Discovered new exit (range 12) 587 | -10/Materials | Discovered new exit (range 16) 808 | -10/Materials | Entered Mines 808 | -10/Mines | Discovered new exit (range 5) 815 | -10/Mines | Received a Rocket Launcher from a helpful Derelict 880 | -10/Mines | Deemed a non-threat by the Exiles lab entrance 883 | -10/Mines | Discovered new exit (range 5) 899 | -10/Mines | Entered Exiles 973 | -10/Exiles | Met 8R-AWN 1027 | -10/Exiles | Met EX-HEX 1130 | -10/Exiles | Met EX-BIN 1232 | -10/Exiles | Met EX-DEC 1248 | -10/Exiles | Learned location of Zion (-7) 1423 | -10/Exiles | Discovered new exit (range 12) 1455 | -10/Exiles | Entered Mines 1463 | -9/Mines | Met a Derelict bent on vengeance 1530 | -9/Mines | Discovered new exit (range 11) 1645 | -9/Mines | Entered Materials 1645 | -8/Materials | Evolved 4 slots: Propulsion x2, Utility x2 1985 | -8/Materials | Lost 4 parts (3n1w) 2245 | -8/Materials | Core integrity fell below 50% 2275 | -8/Materials | Lost 8 parts (1p3n2u2w) 2308 | -8/Materials | Self-destructed Last Messages --------------- 02297_ Critical hit (Burn: +37). 02297_ K-01 Serf collects debris. 02298_ Destroyed Imp. Heat Sink. 02298_ W-25 Informer destroyed. 02299_ The unstable cave ceiling collapses. 02301_ G-47 Trooper destroyed. 02301_ K-01 Serf destroyed. 02301_ A-02 Transporter destroyed. 02301_ K-01 Serf collects debris. 02301_ Imp. Medium Laser destroyed. 02304_ Com. Wheel destroyed. 02304_ K-01 Serf destroyed. 02304_ G-47 Trooper destroyed. 02304_ K-01 Serf collects debris. 02306_ The unstable cave ceiling collapses. 02306_ Med. Storage Unit crushed. 02306_ The unstable cave ceiling collapses. 02306_ Destroyed Lgt. Nuclear Core. 02307_ K-01 Serf collects debris. 02308_ Rocket Launcher destroyed. Map ----- +----------------------------------------------------+ | ?????????????????????????????????????????????????? | | ?????????????????????????????????????????????????? | | ?????????????????????????????????????????????????? | | ?????????????????????????????????????????????????? | | ?????????????????????????????????????????????????? | | ?????????????????????????????????????????????????? | | ?????????????????????????????????????????????????? | | ?????????????????????????????????????????????????? | | ?????????????????????????????????????????????????? | | ?????????????????????????????????????????????????? | | ?????????????????????????????????????????????????? | | ?????????????????????????????????????????????????? | | ?????????????????????????????????????????????????? | | ??????????????????##########?????????????????????? | | ??????????????????# #?????????????????????? | | ??????????????????# #?????????????????????? | | ??????????????????# /[ #????#????????????????? | | ??????????????????# /[ ???? #????????????????? | | ??????????????????# ! [ ??? #????????????????? | | ??????????????????# ???? #???? +??????????? | | ??????????????????? ??? ### #??????????? | | ???????????????????? ! ??? ] #??????????? | | ????????????????#???? ?? [ ##?????????? | | ????????######### ##### ### ##%[! #?????????? | | ??????? = =[[ % [ [ #?????????? | | ??????? % !*@=[%*= * = #?????????? | | ??????? == %[[!=%=g #?????????? | | ?????????########### [ ! = #?????????? | | ??????????????????# =g==%=%* ######????????? | | ??????????????????##=%Y*[ !*k### #??""????? | | ?????????????????? g% [["%+ # """"" #??""????? | | ????????????????? [ " #### """""!#??% ????? | | ????????????????" " #??# """"" ###+###??? | | ???????????????"" " " #??# # #??? | | ??????????????? # #########+## #??? | | ???????????????"" # + [!%%% % % #??? | | ???????????????"" ?## ######### =*!#### #??? | | ???????????????""???##????????# %[#??? #??? | | ??????????????????????????????# =*#???# ##??? | | ??????????????????????????????# ##+##### #???? | | ??????????????????????????????# ## ! # #???? | | ??????????????????????????????# ## /% ##### | | ??????????????????????????????# ## # ## " | | ??????????????????????????????# ## #= ## "" | | ?????????????????????????????? ####### ## "" | | ?????????????????????????????# ## | | ?????????????????????????????# + | | ?????????????????????????????#! ## " | | ?????????????????????????????# #######^ ## " | | ?????????????????????????????###+###?????#^ ## " | +----------------------------------------------------+ Best States ------------- Heat Dissipation 45 Energy Generation 14 Energy Capacity 160 Matter Stores 300 Matter Capacity 300 Sight Range 16 Terrain Scan Density 10 Armor Coverage 150 Evasion (%) 50 Recoil Reduction 3 Item Schematics ----------------- Hcp. Storage Unit | -8/Materials | Scanalyzed Huge Storage Unit | -8/Materials | Scanalyzed Robot Schematics ------------------ None Fabricated ------------ Nothing Alien Tech Used ----------------- None Achievements -------------- None Challenges ------------ None Game ------ Seed MyomerWardroneDisintegrator Manual? 0 Play Time 00:12:23 Cumulative 93.9 hours Start 2024.04.15 @ 12:42:07 End 2024.04.15 @ 12:57:42 Sessions 1 Manual Loads 0 Difficulty Rogue Special Mode None Game No. 120 Rogue 120 Adventurer 0 Explorer 0 Win Type - Total 1 Types 1/0/0/0/0/0/0/0/0 Lore% 42 Gallery% 48 Achievement% 45 Wizard Run 0 Options --------- Layout 1 ASCII 0 Keyboard 0 Movement Mouse Keybinds 0 Fullscreen 2 Font 32/Smallcaps Map View 50x40 Zoom Use 0% Tactical HUD 1 Map Filters NONE Filters NONE Steam 1 RUN: eb1165de-3605-4690-8c38-5127754cbbb3